[Event "49th Rilton Cup 2019-20"]
[Site "Stockholm"]
[Date "2020.01.02"]
[Round "6.21"]
[White "Schekachikhin, Maksim"]
[Black "Sidhant, Mohapatra"]
[Result "1/2-1/2"]
[ECO "D52"]
[WhiteElo "2389"]
[BlackElo "2338"]
[Annotator "NA"]
[PlyCount "82"]
[EventDate "2019.12.27"]
[EventType "swiss"]
[EventCountry "SWE"]
[SourceTitle "playchess.com"]
[Source "ChessBase"]
[SourceQuality "1"]
[TimeControl "40/5400+30:1800+30"]

1. d4 {[%emt 0:00:00]} d5 {[%emt 0:02:19]} 2. Nf3 {[%emt 0:00:00]} Nf6 {[%emt 0:00:41]} 3. c4 {[%emt 0:00:00]} c6 {[%emt 0:00:18]} 4. Nc3 {[%emt 0:00:10]} e6 {[%emt 0:00:39]} 5. Bg5 {[%emt 0:00:19]} Nbd7 {[%emt 0:01:44]} 6. e3 {[%emt 0:00:44]} Qa5 {[%emt 0:00:37]} 7. cxd5 {[%emt 0:00:38]} Nxd5 {[%emt 0:00:09]} 8. Qd2 {[%emt 0:01:20]} Bb4 {[%emt 0:05:42]} 9. Rc1 {[%emt 0:00:25]} Nxc3 {[%emt 0:01:15] D52: Queen's Gambit Declined: Cambridge Springs Variation} 10. bxc3 {[%emt 0:00:24]} Ba3 {[%emt 0:00:04]} 11. Rb1 {[%emt 0:05:02]} b6 {[%emt 0:00:28]} 12. Bd3 {[%emt 0:07:50]} Ba6 {[%emt 0:00:15]} 13. c4 $146 {[%emt 0:07:28]} ({Predecessor:} 13. O-O O-O 14. e4 Bxd3 15. Qxd3 e5 16. Bh4 Rac8 17. Nd2 {1-0 (34) Can,E (2519)-Vajda,L (2601) Albena 2014}) 13... Qxd2+ {[%emt 0:01:35]} 14. Nxd2 {[%emt 0:00:10]} Be7 {[%emt 0:06:53]} 15. h4 {[%emt 0:07:06]} e5 {[%emt 0:02:35]} 16. Bxe7 {[%emt 0:02:44]} Kxe7 {[%emt 0:00:04]} 17. Rb3 {[%emt 0:07:06]} exd4 {[%emt 0:01:47]} 18. exd4 {[%emt 0:00:06]} Nf6 {[%emt 0:00:08]} 19. Rh3 {[%emt 0:05:29]} Rhd8 {[%emt 0:00:57]} 20. Re3+ {[%emt 0:00:26]} Kf8 {[%emt 0:00:16]} 21. Nf3 {[%emt 0:00:58]} Bc8 $11 {[%emt 0:14:22]} 22. Kd2 {[%emt 0:09:42]} Bg4 {[%emt 0:02:59]} 23. Kc3 {[%emt 0:01:19]} Rac8 {[%emt 0:01:28]} 24. Ng5 {[%emt 0:08:22]} h6 {[%emt 0:12:24]} 25. Ne4 {[%emt 0:00:32]} Nd5+ {[%emt 0:00:11]} 26. cxd5 {[%emt 0:00:52]} cxd5+ {[%emt 0:00:05]} 27. Kd2 {[%emt 0:06:42]} dxe4 {[%emt 0:00:14]} 28. Rxe4 {[%emt 0:00:24]} Bf5 {[%emt 0:11:22]} 29. Rf4 {[%emt 0:03:19]} Be6 30. Rb4 {[%emt 0:04:15]} g5 {[%emt 0:01:46]} 31. hxg5 {[%emt 0:03:13]} hxg5 {[%emt 0:00:12]} 32. Re4 {[%emt 0:05:41]} Bxa2 {[%emt 0:01:31]} 33. Re5 {[%emt 0:04:09]} f6 {[%emt 0:09:47]} 34. Rf5 {[%emt 0:00:44]} Rc6 {[%emt 0:00:05]} 35. Ra4 {[%emt 0:00:41]} Bf7 {[%emt 0:00:20]} 36. Bb5 {[%emt 0:04:25]} Rcd6 {[%emt 0:00:42]} 37. Rxa7 {[%emt 0:00:18]} Bg6 {[%emt 0:00:32]} 38. Rf3 {[%emt 0:00:23]} Rxd4+ {[%emt 0:01:39]} 39. Kc3 {[%emt 0:00:11]} R4d6 {[%emt 0:00:15]} 40. Rh3 {[%emt 0:02:41]} Bf7 {[%emt 0:02:12]} 41. Rh8+ {[%emt 0:08:12]} Kg7 {[%emt 0:00:00]} 1/2-1/2

[Event "49th Rilton Cup 2019-20"]
[Site "Stockholm"]
[Date "2020.01.02"]
[Round "6.22"]
[White "Valkama, Eero"]
[Black "Percivaldi, Martin"]
[Result "1/2-1/2"]
[ECO "C03"]
[WhiteElo "2249"]
[BlackElo "2386"]
[Annotator "ChessBase"]
[PlyCount "131"]
[EventDate "2019.12.27"]
[EventType "swiss"]
[EventCountry "SWE"]
[SourceTitle "playchess.com"]
[Source "ChessBase"]
[SourceQuality "1"]
[TimeControl "40/5400+30:1800+30"]

1. e4 {[%emt 0:00:00]} e6 {[%emt 0:01:17]} 2. d4 {[%emt 0:00:07]} d5 {[%emt 0:00:38]} 3. Nd2 {[%emt 0:00:06]} Be7 {[%emt 0:00:36]} 4. Bd3 {[%emt 0:00:12]} c5 {[%emt 0:00:21]} 5. dxc5 {[%emt 0:00:06]} Nf6 {[%emt 0:00:16]} 6. Qe2 {[%emt 0:00:11]} O-O {[%emt 0:00:21]} 7. Ngf3 {[%emt 0:00:04]} a5 {[%emt 0:00:11]} 8. O-O {[%emt 0:00:16]} Na6 {[%emt 0:00:15]} 9. e5 {[%emt 0:01:42]} Nd7 {[%emt 0:00:09]} 10. c4 {[%emt 0:00:13]} Ndxc5 {[%emt 0:00:24]} 11. Bb1 {[%emt 0:01:08]} Nb4 {[%emt 0:00:36]} 12. cxd5 {[%emt 0:05:03]} exd5 {[%emt 0:09:59]} 13. a3 {[%emt 0:10:39]} Nc6 {[%emt 0:02:26]} 14. Nb3 {[%emt 0:12:39]} Nxb3 {[%emt 0:09:45]} 15. Qc2 {[%emt 0:00:18]} Bf5 {[%emt 0:11:08]} 16. Qxb3 {[%emt 0:04:59]} a4 {[%emt 0:00:43]} 17. Qb5 {[%emt 0:02:00]} Be4 {[%emt 0:09:17]} 18. Qe2 {[%emt 0:12:13]} Bxb1 {[%emt 0:06:22]} 19. Rxb1 {[%emt 0:00:06]} d4 {[%emt 0:00:42]} 20. Rd1 {[%emt 0:08:13]} Qd5 {[%emt 0:04:27]} 21. Bf4 {[%emt 0:01:25]} Rfd8 {[%emt 0:00:54]} 22. Rd3 {[%emt 0:00:44]} h6 {[%emt 0:10:50]} 23. Rbd1 {[%emt 0:03:55]} Bc5 {[%emt 0:00:20]} 24. Re1 {[%emt 0:09:23]} Re8 {[%emt 0:02:57]} 25. Qd2 {[%emt 0:02:25]} Re6 {[%emt 0:02:09]} 26. h3 {[%emt 0:02:34]} Ra5 {[%emt 0:01:59]} 27. Qc2 {[%emt 0:01:10]} b5 {[%emt 0:05:18]} 28. Red1 {[%emt 0:05:06]} Qc4 {[%emt 0:05:07]} 29. Qe2 {[%emt 0:00:37]} b4 {[%emt 0:00:22]} 30. Qe4 {[%emt 0:02:04]} Bb6 {[%emt 0:00:51]} 31. axb4 {[%emt 0:04:36]} Rd5 {[%emt 0:04:33]} 32. Ra3 {[%emt 0:01:43]} Rd8 {[%emt 0:03:10]} 33. Rxa4 {[%emt 0:03:51]} Qb3 {[%emt 0:00:08]} 34. Rda1 {[%emt 0:01:02]} Qxb2 {[%emt 0:00:41]} 35. Rb1 {[%emt 0:02:16]} Qc3 {[%emt 0:00:19]} 36. b5 {[%emt 0:02:44]} Ne7 {[%emt 0:00:25]} 37. Ra8 {[%emt 0:00:35]} Rxa8 {[%emt 0:00:36]} 38. Qxa8+ {[%emt 0:00:02]} Kh7 {[%emt 0:00:36]} 39. Qe4+ {[%emt 0:00:07]} Kg8 {[%emt 0:02:55]} 40. Rd1 {[%emt 0:02:43]} f5 {[%emt 0:04:19]} 41. Qa8+ {[%emt 0:08:52]} Kf7 {[%emt 0:01:17]} 42. Qa2 {[%emt 0:00:07]} Qb4 {[%emt 0:00:28]} 43. h4 {[%emt 0:08:00]} d3 {[%emt 0:07:56]} 44. Be3 {[%emt 0:01:36]} Bxe3 {[%emt 0:00:34]} 45. fxe3 {[%emt 0:00:02]} Qe4 {[%emt 0:00:13]} 46. Kf2 {[%emt 0:05:37]} Nd5 {[%emt 0:01:09]} 47. Qa7+ {[%emt 0:02:17]} Kg6 {[%emt 0:02:58]} 48. Qd4 {[%emt 0:00:09]} Rb6 {[%emt 0:00:25]} 49. Rxd3 {[%emt 0:01:04]} Rxb5 {[%emt 0:01:15]} 50. Rd2 {[%emt 0:01:08]} Qxd4 {[%emt 0:02:14]} 51. Nxd4 {[%emt 0:06:11]} Rb7 {[%emt 0:02:22]} 52. Nxf5 {[%emt 0:00:43]} Kxf5 {[%emt 0:01:48]} 53. Rxd5 {[%emt 0:00:06]} Ke4 {[%emt 0:00:59]} 54. Rd4+ {[%emt 0:01:11]} Kxe5 {[%emt 0:00:05]} 55. Kf3 {[%emt 0:00:24]} Rf7+ {[%emt 0:00:19]} 56. Rf4 {[%emt 0:00:30]} Ra7 {[%emt 0:00:05]} 57. Kg4 {[%emt 0:00:26]} Ra3 {[%emt 0:06:21]} 58. Rf8 {[%emt 0:00:31]} Rxe3 {[%emt 0:00:45]} 59. Re8+ {[%emt 0:00:17]} Kd4 {[%emt 0:00:01]} 60. Rxe3 {[%emt 0:00:20]} Kxe3 {[%emt 0:00:01]} 61. Kf5 {[%emt 0:00:09]} Kf2 {[%emt 0:00:20]} 62. h5 {[%emt 0:01:19]} Kg3 {[%emt 0:00:11]} 63. Kg6 {[%emt 0:00:06]} Kh4 {[%emt 0:00:07]} 64. Kxg7 {[%emt 0:00:37]} Kxh5 {[%emt 0:00:08]} 65. g4+ {[%emt 0:00:12]} Kxg4 {[%emt 0:00:06]} 66. Kxh6 {[%emt 0:00:04]} 1/2-1/2

[Event "49th Rilton Cup 2019-20"]
[Site "Stockholm"]
[Date "2020.01.02"]
[Round "6.23"]
[White "Kaasen, Tor Fredrik"]
[Black "Ajay Krishna, S."]
[Result "1-0"]
[ECO "D31"]
[WhiteElo "2385"]
[BlackElo "2302"]
[Annotator "NA"]
[PlyCount "79"]
[EventDate "2019.12.27"]
[EventType "swiss"]
[EventCountry "SWE"]
[SourceTitle "playchess.com"]
[Source "ChessBase"]
[SourceQuality "1"]
[TimeControl "40/5400+30:1800+30"]

1. d4 {[%emt 0:03:16]} d5 {[%emt 0:00:00]} 2. c4 {[%emt 0:00:57]} e6 {[%emt 0:00:30]} 3. Nc3 {[%emt 0:01:18]} Bb4 {[%emt 0:00:30]} 4. cxd5 {[%emt 0:00:32]} exd5 {[%emt 0:00:30]} 5. Bf4 {[%emt 0:00:30]} c6 {[%emt 0:00:30]} 6. e3 {[%emt 0:00:52]} Ne7 {[%emt 0:03:21]} 7. Nge2 {[%emt 0:03:17]} O-O {[%emt 0:01:02]} 8. a3 {[%emt 0:02:23]} Bd6 {[%emt 0:00:42]} 9. Bxd6 {[%emt 0:02:05]} Qxd6 {[%emt 0:00:30]} 10. Ng3 {[%emt 0:00:30]} Nd7 {[%emt 0:06:14]} 11. Bd3 {[%emt 0:00:56]} f5 {[%emt 0:03:45]} 12. Qc2 {[%emt 0:05:52]} g6 {[%emt 0:02:14]} 13. Nce2 {[%emt 0:08:10]} Nf6 {[%emt 0:00:45]} 14. b4 {[%emt 0:04:14]} Be6 {[%emt 0:02:45]} 15. O-O {[%emt 0:01:51]} h5 {[%emt 0:02:41]} 16. Nf4 {[%emt 0:06:33]} Bf7 {[%emt 0:00:43]} 17. Rfc1 {[%emt 0:04:26]} Ne4 {[%emt 0:05:42]} 18. Be2 {[%emt 0:06:17]} h4 $11 {[%emt 0:07:55]} 19. Nxe4 {[%emt 0:03:21]} fxe4 {[%emt 0:00:30]} 20. b5 {[%emt 0:01:46]} Qf6 {[%emt 0:10:12]} 21. bxc6 {[%emt 0:03:06]} bxc6 {[%emt 0:04:33]} 22. Bg4 {[%emt 0:00:30]} Rab8 {[%emt 0:07:20]} 23. Rab1 {[%emt 0:00:50]} Rb6 {[%emt 0:01:09]} 24. Qa4 {[%emt 0:03:19]} Rfb8 {[%emt 0:08:12]} 25. Rb4 {[%emt 0:01:28]} Rxb4 {[%emt 0:02:33]} 26. axb4 {[%emt 0:00:35]} Qd6 {[%emt 0:02:08]} 27. Qxa7 {[%emt 0:07:50]} Rxb4 {[%emt 0:01:13]} 28. Nh3 {[%emt 0:02:55]} Rb2 {[%emt 0:03:02]} 29. Qd7 {[%emt 0:01:54]} Qb4 {[%emt 0:04:22]} 30. Be6 {[%emt 0:05:21]} Kg7 {[%emt 0:01:06]} 31. g3 {[%emt 0:00:49]} hxg3 {[%emt 0:05:25]} 32. hxg3 {[%emt 0:00:35]} Bxe6 {[%emt 0:08:08]} 33. Qxe6 {[%emt 0:00:30]} Rb1 {[%emt 0:00:35]} 34. Rxb1 {[%emt 0:01:11]} Qxb1+ {[%emt 0:00:30]} 35. Kg2 {[%emt 0:00:30]} Qb7 {[%emt 0:00:30]} 36. Ng5 {[%emt 0:02:09]} Nf5 {[%emt 0:03:01]} 37. Qe5+ {[%emt 0:01:51]} Kh6 {[%emt 0:00:30]} 38. Ne6 {[%emt 0:00:53]} Qc8 {[%emt 0:00:57]} 39. g4 {[%emt 0:00:50]} Qg8 {[%emt 0:01:18]} 40. Qh2+ {[%emt 0:00:30]} 1-0

[Event "49th Rilton Cup 2019-20"]
[Site "Stockholm"]
[Date "2020.01.02"]
[Round "6.24"]
[White "Valsecchi, Alessio"]
[Black "Chernyak, Viktoria"]
[Result "1-0"]
[ECO "A11"]
[WhiteElo "2503"]
[BlackElo "2284"]
[Annotator "ChessBase"]
[PlyCount "89"]
[EventDate "2019.12.27"]
[EventType "swiss"]
[EventCountry "SWE"]
[SourceTitle "playchess.com"]
[Source "ChessBase"]
[SourceQuality "1"]
[TimeControl "40/5400+30:1800+30"]

1. c4 {[%emt 0:00:00]} c6 {[%emt 0:00:00]} 2. Nf3 {[%emt 0:00:30]} d5 {[%emt 0:00:00]} 3. e3 {[%emt 0:00:45]} Nf6 {[%emt 0:00:07]} 4. Nc3 {[%emt 0:00:13]} g6 {[%emt 0:01:56]} 5. d4 {[%emt 0:02:17]} Bg7 {[%emt 0:00:11]} 6. Bd3 {[%emt 0:01:00]} O-O {[%emt 0:01:56]} 7. O-O {[%emt 0:00:10]} Be6 {[%emt 0:11:46]} 8. Qe2 {[%emt 0:07:06]} a5 {[%emt 0:06:15]} 9. Rd1 {[%emt 0:05:18]} Nbd7 {[%emt 0:10:28]} 10. h3 {[%emt 0:02:08]} Bf5 {[%emt 0:04:14]} 11. e4 {[%emt 0:03:33]} dxe4 {[%emt 0:00:29]} 12. Nxe4 {[%emt 0:00:09]} Nxe4 {[%emt 0:00:59]} 13. Bxe4 {[%emt 0:00:07]} Bxe4 {[%emt 0:00:05]} 14. Qxe4 {[%emt 0:00:07]} Nf6 {[%emt 0:02:58]} 15. Qe2 {[%emt 0:03:01]} a4 {[%emt 0:01:14]} 16. Bd2 {[%emt 0:02:39]} Re8 {[%emt 0:01:15]} 17. Bc3 {[%emt 0:01:33]} Qd7 {[%emt 0:02:58]} 18. Ne5 {[%emt 0:01:57]} Qf5 {[%emt 0:03:45]} 19. Re1 {[%emt 0:00:36]} h5 {[%emt 0:06:34]} 20. Rad1 {[%emt 0:02:42]} Rac8 {[%emt 0:05:45]} 21. Rd3 {[%emt 0:04:02]} b5 {[%emt 0:04:12]} 22. Rf3 {[%emt 0:04:29]} Qe6 {[%emt 0:00:05]} 23. Qd3 {[%emt 0:02:31]} Qd6 {[%emt 0:06:40]} 24. cxb5 {[%emt 0:06:24]} cxb5 {[%emt 0:00:20]} 25. Qxb5 {[%emt 0:00:18]} Ra8 {[%emt 0:03:19]} 26. a3 {[%emt 0:04:43]} Reb8 {[%emt 0:04:59]} 27. Qd3 {[%emt 0:10:50]} Rb7 {[%emt 0:02:10]} 28. Bb4 {[%emt 0:03:21]} Qd5 {[%emt 0:01:02]} 29. Qc2 {[%emt 0:04:31]} e6 {[%emt 0:00:39]} 30. Bc3 {[%emt 0:01:35]} Rc7 {[%emt 0:01:52]} 31. Rg3 {[%emt 0:05:54]} Raa7 {[%emt 0:02:32]} 32. Qd3 {[%emt 0:04:14]} Rab7 {[%emt 0:05:10]} 33. Nxg6 {[%emt 0:00:56]} fxg6 {[%emt 0:00:07]} 34. Re5 {[%emt 0:00:18]} Qc4 {[%emt 0:01:27]} 35. Qxg6 {[%emt 0:00:28]} Rf7 {[%emt 0:00:05]} 36. Rc5 {[%emt 0:02:50]} Qe2 {[%emt 0:02:17]} 37. d5 {[%emt 0:05:11]} Kf8 {[%emt 0:06:49]} 38. Rc8+ {[%emt 0:04:10]} Ke7 {[%emt 0:00:03]} 39. dxe6 {[%emt 0:00:55]} Qd1+ {[%emt 0:00:48]} 40. Kh2 {[%emt 0:00:10]} Kxe6 {[%emt 0:00:13]} 41. Re8+ {[%emt 0:32:11]} Rbe7 {[%emt 0:31:45]} 42. Re3+ {[%emt 0:00:29]} Kd7 {[%emt 0:00:05]} 43. R8xe7+ {[%emt 0:00:07]} Rxe7 {[%emt 0:00:03]} 44. Rxe7+ {[%emt 0:00:19]} Kxe7 {[%emt 0:00:03]} 45. Qxg7+ {[%emt 0:00:06]} 1-0

[Event "49th Rilton Cup 2019-20"]
[Site "Stockholm"]
[Date "2020.01.03"]
[Round "7.7"]
[White "Pantzar, Milton"]
[Black "Hillarp Persson, Tiger"]
[Result "1/2-1/2"]
[ECO "A41"]
[WhiteElo "2410"]
[BlackElo "2537"]
[Annotator "ChessBase"]
[PlyCount "118"]
[EventDate "2019.12.27"]
[EventType "swiss"]
[EventCountry "SWE"]
[SourceTitle "playchess.com"]
[Source "ChessBase"]
[SourceQuality "1"]
[TimeControl "40/5400+30:1800+30"]

1. d4 {[%emt 0:00:00]} d6 {[%emt 0:00:00]} 2. c4 {[%emt 0:01:39]} e5 {[%emt 0:00:10]} 3. d5 {[%emt 0:00:57]} a5 {[%emt 0:01:14]} 4. Nc3 {[%emt 0:02:56]} g6 {[%emt 0:10:40]} 5. e4 {[%emt 0:01:23]} Na6 {[%emt 0:03:07]} 6. Be3 {[%emt 0:07:34]} h5 {[%emt 0:15:55]} 7. Nf3 {[%emt 0:13:00]} Bh6 {[%emt 0:05:38]} 8. Bxh6 {[%emt 0:05:52]} Nxh6 {[%emt 0:00:08]} 9. a3 {[%emt 0:05:47]} Bd7 {[%emt 0:06:01]} 10. Rb1 {[%emt 0:03:42]} Nc5 {[%emt 0:12:53]} 11. b4 {[%emt 0:01:53]} axb4 {[%emt 0:00:09]} 12. axb4 {[%emt 0:00:06]} Na4 {[%emt 0:00:06]} 13. Nxa4 {[%emt 0:03:38]} Rxa4 {[%emt 0:00:09]} 14. Be2 {[%emt 0:02:24]} O-O {[%emt 0:03:44]} 15. O-O {[%emt 0:02:13]} Qe7 {[%emt 0:01:27]} 16. c5 {[%emt 0:15:10]} Rfa8 {[%emt 0:01:55]} 17. cxd6 {[%emt 0:03:52]} cxd6 {[%emt 0:04:39]} 18. Qc1 {[%emt 0:03:14]} Ng4 {[%emt 0:13:18]} 19. Qc7 {[%emt 0:00:39]} Nf6 {[%emt 0:00:44]} 20. Bb5 {[%emt 0:11:24]} Ra2 {[%emt 0:00:52]} 21. Rfc1 {[%emt 0:01:27]} Kg7 {[%emt 0:08:17]} 22. h3 {[%emt 0:03:25]} R8a7 {[%emt 0:03:27]} 23. Bxd7 {[%emt 0:05:05]} Nxd7 {[%emt 0:00:20]} 24. Qc8 {[%emt 0:01:03]} b5 {[%emt 0:03:34]} 25. Rc7 {[%emt 0:00:21]} Nb6 {[%emt 0:00:42]} 26. Rxe7 {[%emt 0:01:43]} Nxc8 {[%emt 0:00:07]} 27. Rxa7 {[%emt 0:00:14]} Rxa7 {[%emt 0:00:16]} 28. Rc1 {[%emt 0:00:25]} Ne7 {[%emt 0:01:02]} 29. h4 {[%emt 0:01:42]} f6 {[%emt 0:00:08]} 30. Kf1 {[%emt 0:00:46]} Kf7 {[%emt 0:00:22]} 31. Ng1 {[%emt 0:00:28]} Ra4 {[%emt 0:00:36]} 32. Rb1 {[%emt 0:00:41]} f5 {[%emt 0:00:56]} 33. f3 {[%emt 0:00:06]} fxe4 {[%emt 0:02:54]} 34. fxe4 {[%emt 0:00:05]} Ng8 {[%emt 0:00:07]} 35. Nf3 {[%emt 0:00:09]} Nf6 {[%emt 0:00:07]} 36. Ng5+ {[%emt 0:00:07]} Ke7 {[%emt 0:00:07]} 37. Rb3 {[%emt 0:01:46]} Ng4 {[%emt 0:01:31]} 38. Rc3 {[%emt 0:01:19]} Rxb4 {[%emt 0:00:26]} 39. Rc7+ {[%emt 0:00:04]} Ke8 {[%emt 0:00:16]} 40. Rg7 {[%emt 0:01:06]} Nf6 {[%emt 0:00:52]} 41. Rxg6 {[%emt 0:04:29]} Nxe4 {[%emt 0:00:14]} 42. Nxe4 {[%emt 0:00:17]} Rxe4 {[%emt 0:00:09]} 43. Rxd6 {[%emt 0:00:05]} Rxh4 {[%emt 0:00:28]} 44. Re6+ {[%emt 0:06:11]} Kd7 {[%emt 0:00:09]} 45. Rxe5 {[%emt 0:00:05]} Kd6 {[%emt 0:03:51]} 46. Rf5 {[%emt 0:01:46]} b4 {[%emt 0:13:51]} 47. Ke2 {[%emt 0:03:10]} Kc5 {[%emt 0:00:57]} 48. Ke3 {[%emt 0:07:07]} Rh1 {[%emt 0:09:04]} 49. Kd2 {[%emt 0:02:03]} Rh2 {[%emt 0:00:28]} 50. Rg5 {[%emt 0:01:10]} Rh4 {[%emt 0:01:04]} 51. Kc2 {[%emt 0:01:26]} Kc4 {[%emt 0:03:16]} 52. d6 {[%emt 0:01:37]} b3+ {[%emt 0:00:59]} 53. Kb2 {[%emt 0:00:26]} Rd4 {[%emt 0:00:08]} 54. Rxh5 {[%emt 0:00:31]} Rd2+ {[%emt 0:00:28]} 55. Kb1 {[%emt 0:00:10]} Rxd6 {[%emt 0:00:12]} 56. Rh4+ {[%emt 0:00:54]} Kc3 {[%emt 0:00:20]} 57. Rh3+ {[%emt 0:00:07]} Kb4 {[%emt 0:00:08]} 58. g4 {[%emt 0:01:26]} Rd1+ {[%emt 0:00:34]} 59. Kb2 {[%emt 0:00:06]} Rd2+ {[%emt 0:00:57]} 1/2-1/2

[Event "49th Rilton Cup 2019-20"]
[Site "Stockholm"]
[Date "2020.01.03"]
[Round "7.9"]
[White "Rathanvel, V S"]
[Black "Blomqvist, Erik"]
[Result "1-0"]
[ECO "B67"]
[WhiteElo "2411"]
[BlackElo "2537"]
[Annotator "ChessBase"]
[PlyCount "81"]
[EventDate "2019.12.27"]
[EventType "swiss"]
[EventCountry "SWE"]
[SourceTitle "playchess.com"]
[Source "ChessBase"]
[SourceQuality "1"]
[TimeControl "40/5400+30:1800+30"]

1. e4 {[%emt 0:00:00]} c5 {[%emt 0:00:00]} 2. Nf3 {[%emt 0:00:00]} d6 {[%emt 0:00:00]} 3. d4 {[%emt 0:00:12]} cxd4 {[%emt 0:00:00]} 4. Nxd4 {[%emt 0:00:07]} Nf6 {[%emt 0:00:00]} 5. Nc3 {[%emt 0:00:06]} Nc6 {[%emt 0:00:02]} 6. Bg5 {[%emt 0:00:32]} e6 {[%emt 0:00:09]} 7. Qd2 {[%emt 0:00:08]} a6 {[%emt 0:00:08]} 8. O-O-O {[%emt 0:00:33]} Bd7 {[%emt 0:00:22]} 9. f3 {[%emt 0:00:09]} Nxd4 {[%emt 0:01:02]} 10. Qxd4 {[%emt 0:00:15]} Be7 {[%emt 0:01:24]} 11. Kb1 {[%emt 0:06:50]} b5 {[%emt 0:02:14]} 12. h4 {[%emt 0:06:12]} Qc7 {[%emt 0:00:54]} 13. h5 {[%emt 0:16:43]} h6 {[%emt 0:05:28]} 14. Bh4 {[%emt 0:03:12]} Qb7 {[%emt 0:13:42]} 15. g4 {[%emt 0:12:36]} b4 {[%emt 0:11:27]} 16. Ne2 {[%emt 0:01:34]} Rc8 {[%emt 0:00:56]} 17. Qd2 {[%emt 0:15:32]} a5 {[%emt 0:08:31]} 18. g5 {[%emt 0:02:22]} hxg5 {[%emt 0:02:18]} 19. Bxg5 {[%emt 0:00:20]} Nxe4 {[%emt 0:10:52]} 20. fxe4 {[%emt 0:00:05]} Bxg5 {[%emt 0:00:08]} 21. Qxd6 {[%emt 0:25:32]} Ba4 {[%emt 0:08:35]} 22. Nd4 {[%emt 0:01:21]} Bxc2+ {[%emt 0:03:22]} 23. Nxc2 {[%emt 0:00:06]} Rd8 {[%emt 0:00:13]} 24. Ba6 {[%emt 0:00:10]} Rxd6 {[%emt 0:06:35]} 25. Bxb7 {[%emt 0:00:07]} Rxh5 {[%emt 0:00:07]} 26. Rhg1 {[%emt 0:03:55]} Bf4 {[%emt 0:02:55]} 27. Rxd6 {[%emt 0:01:56]} Bxd6 {[%emt 0:00:01]} 28. Rd1 {[%emt 0:01:02]} Ke7 {[%emt 0:02:16]} 29. Nd4 {[%emt 0:00:28]} Bc7 {[%emt 0:07:12]} 30. Nc6+ {[%emt 0:00:56]} Ke8 {[%emt 0:00:24]} 31. e5 {[%emt 0:01:18]} Rh2 {[%emt 0:00:58]} 32. Ba6 {[%emt 0:00:36]} g5 {[%emt 0:00:25]} 33. Rg1 {[%emt 0:00:51]} a4 {[%emt 0:04:11]} 34. Bb5 {[%emt 0:00:33]} a3 {[%emt 0:00:23]} 35. Nxb4+ {[%emt 0:00:37]} Kf8 {[%emt 0:00:09]} 36. bxa3 {[%emt 0:00:20]} Bxe5 {[%emt 0:00:04]} 37. Rxg5 {[%emt 0:00:30]} f5 {[%emt 0:02:59]} 38. Nd3 {[%emt 0:00:29]} Bc3 {[%emt 0:00:14]} 39. Bc4 {[%emt 0:00:26]} Ke7 {[%emt 0:00:26]} 40. Rg6 {[%emt 0:00:31]} Bf6 {[%emt 0:00:15]} 41. a4 {[%emt 0:09:39]} 1-0

[Event "49th Rilton Cup 2019-20"]
[Site "Stockholm"]
[Date "2020.01.03"]
[Round "7.10"]
[White "Spyropoulos, Nikolaos"]
[Black "Hauge, Lars Oskar"]
[Result "0-1"]
[ECO "B32"]
[WhiteElo "2401"]
[BlackElo "2504"]
[Annotator "ChessBase"]
[PlyCount "50"]
[EventDate "2019.12.27"]
[EventType "swiss"]
[EventCountry "SWE"]
[SourceTitle "playchess.com"]
[Source "ChessBase"]
[SourceQuality "1"]
[TimeControl "40/5400+30:1800+30"]

1. e4 {[%emt 0:00:58]} c5 {[%emt 0:00:10]} 2. Nf3 {[%emt 0:00:30]} Nc6 {[%emt 0:00:30]} 3. d4 {[%emt 0:00:30]} cxd4 {[%emt 0:00:30]} 4. Nxd4 {[%emt 0:00:30]} e5 {[%emt 0:00:30]} 5. Nb5 {[%emt 0:00:30]} a6 {[%emt 0:01:32]} 6. Nd6+ {[%emt 0:00:00]} Bxd6 {[%emt 0:00:30]} 7. Qxd6 {[%emt 0:00:00]} Qf6 {[%emt 0:00:00]} 8. Qd1 {[%emt 0:12:21]} Qg6 {[%emt 0:00:00]} 9. Nc3 {[%emt 0:04:29]} d5 {[%emt 0:00:42]} 10. Nxd5 {[%emt 0:13:15]} Qxe4+ {[%emt 0:00:07]} 11. Be2 {[%emt 0:05:17]} Nd4 {[%emt 0:00:13]} 12. Nc7+ {[%emt 0:17:33]} Ke7 {[%emt 0:00:42]} 13. Nxa8 {[%emt 0:06:23]} Qxg2 {[%emt 0:02:40]} 14. Rf1 {[%emt 0:00:19]} Bf5 {[%emt 0:00:40]} 15. Be3 {[%emt 0:03:36]} Nxc2+ {[%emt 0:02:06]} 16. Kd2 {[%emt 0:00:07]} Qd5+ {[%emt 0:01:49]} 17. Kc1 {[%emt 0:00:07]} Nxe3 {[%emt 0:00:02]} 18. fxe3 {[%emt 0:03:53]} Qc5+ {[%emt 0:15:47]} 19. Kd2 {[%emt 0:00:05]} Qb4+ {[%emt 0:06:11]} 20. Kc1 {[%emt 0:00:06]} Nh6 {[%emt 0:00:50]} 21. Rxf5 {[%emt 0:21:57]} Nxf5 {[%emt 0:01:42]} 22. Qc2 {[%emt 0:00:13]} Qe1+ {[%emt 0:17:28]} 23. Bd1 {[%emt 0:00:07]} Nxe3 {[%emt 0:00:31]} 24. Qc5+ {[%emt 0:03:13]} Ke6 {[%emt 0:03:24]} 25. Nc7+ {[%emt 0:00:49]} Kd7 {[%emt 0:00:04]} 0-1